Cogmind - Beta 14 @@@ ROGUE MODE // 2025.03.21 @ 14:20:06 Player: Conlarando Result: Destroyed by B-75 Beast with Heavy Machine Gun Performance ------------- Evolutions (4) 2000 Regions Visited (8) 1600 Robots Destroyed (67) 335 Value Destroyed (1700) 1700 Prototype IDs (5) 100 Alien Tech Used (0) 0 Bonus (0) 0 TOTAL SCORE: 5735 Bonus ------- None Cogmind --------- Core Integrity 0/850 Matter 550/550 Energy 88/100 System Corruption 3% Temperature Cool (12) Movement Core (250) Ox4 Location -6/Extension Parts ------- > --- POWER (1) -------- (None) > --- PROPULSION (3) --- (None) > --- UTILITY (9) ------ Medium Storage Unit Matter Compressor Improved Signal Interpreter Improved Signal Interpreter Hacking Suite > --- WEAPON (2) ------- (None) > --- INVENTORY (10) --- Signal Interpreter Signal Interpreter Peak State ------------ > --- POWER ------------ Light Deuterium Engine > --- PROPULSION ------- Combat Airjet Combat Airjet Combat Airjet > --- UTILITY ---------- Medium Storage Unit Matter Compressor Sensor Array Improved Signal Interpreter Improved Signal Interpreter Propulsion Shielding Utility Shielding Hacking Suite Hacking Suite > --- WEAPON ----------- Heavy Machine Gun Axe > --- INVENTORY -------- Hover Unit Improved Hover Unit Improved Hover Unit Aerolev Unit Gravmag Array Signal Interpreter Signal Interpreter [Rating: 49] Favorites ----------- Power Light Ion Engine Engine Light Ion Engine Power Core Light Nuclear Core Propulsion Light Treads Treads Light Treads Wheel Wheel Hover Unit Combat Airjet Utility Medium Armor Plating Device Sensor Array Storage Huge Storage Unit Processor Improved Signal Interpreter Hackware Hacking Suite Protection Medium Armor Plating Weapon Light Assault Rifle Energy Gun EM Shotgun Ballistic Gun Light Assault Rifle Launcher Grenade Launcher Special Weapon Mining Laser Slashing Weapon Axe Build | -11 -10 -10 -10 -9 -8 -7 -6 -6 ------- Run | Yrd Mat Min Exi Min Mat Fac Fac Ext Slots Evolved 8 | . . . . . 4 2 2 . Power . | . . . . . . . . . Propulsion 1 | . . . . . 1 . . . Utility 7 | . . . . . 3 2 2 . Weapon . | . . . . . . . . . Parts Attached 110 | 7 15 3 . 22 24 24 6 9 Power 11 | 1 2 1 . 1 2 2 1 1 Engine 9 | 1 2 1 . . 1 2 1 1 Core 2 | . . . . 1 1 . . . Reactor . | . . . . . . . . . Propulsion 26 | 3 . . . 6 5 5 1 6 Treads 11 | 3 . . . 3 5 . . . Leg . | . . . . . . . . . Wheel 4 | . . . . 3 . . . 1 Hover 11 | . . . . . . 5 1 5 Flight . | . . . . . . . . . Utility 34 | 1 4 1 . 3 7 13 3 2 Device 6 | . . . . . . 5 1 . Storage 7 | 1 2 1 . . . 1 1 1 Processor 3 | . . . . . 1 2 . . Hackware 3 | . . . . . . 3 . . Protection 15 | . 2 . . 3 6 2 1 1 Artifact . | . . . . . . . . . Weapon 39 | 2 9 1 . 12 10 4 1 . Energy Gun 4 | . 2 . . 2 . . . . Energy Cannon . | . . . . . . . . . Ballistic Gun 25 | 2 4 1 . 8 8 1 1 . Ballistic Cannon . | . . . . . . . . . Launcher 8 | . 2 . . 2 2 2 . . Special Weapon 1 | . 1 . . . . . . . Impact Weapon . | . . . . . . . . . Slashing Weapon 1 | . . . . . . 1 . . Piercing Weapon . | . . . . . . . . . Special Melee Weapon . | . . . . . . . . . Unidentified Prototypes 3 | . . . . . 1 2 . . Parts Lost 42 | . 2 1 . 9 6 7 . 17 Power 7 | . 1 1 . 1 . 2 . 2 Propulsion 16 | . . . . 4 2 1 . 9 Utility 12 | . 1 . . 2 2 3 . 4 Weapon 7 | . . . . 2 2 1 . 2 Highest Loss Streak 17 | . 2 1 . 5 3 2 . 17 To Critical Strikes 1 | . . . . . . 1 . . Average Slot Usage (%) 91 | . 99 100 71 98 91 95 94 96 Engine 9 | . 13 14 14 7 3 3 6 5 Core 1 | . . . . 6 5 3 . . Treads 22 | . 28 28 28 21 25 . . . Hover 3 | . . . . . . 22 18 19 Storage 12 | . 14 14 14 14 9 7 10 13 Processor 2 | . . . . . 5 8 13 13 Hackware 2 | . . . . . . 14 13 13 Protection 15 | . 13 14 14 14 22 13 13 11 Ballistic Gun 14 | . 25 18 . 24 17 . 5 5 Launcher 2 | . 1 9 . 2 . 3 . . Peak Build Rating 49 | 6 11 10 8 15 29 40 49 49 Average Rating 17 | 4 9 9 8 11 24 36 44 46 On Entrance 17 | . 6 10 8 8 14 29 30 49 Naked Turns . | . . . . . . . . . Heaviest Build 108 | 12 55 94 90 97 108 106 31 32 Greatest Support 60 | 40 40 40 40 43 60 60 36 36 Greatest Overweight (x) 6 | . 1 2 2 6 4 1 1 5 Average Overweight (x) 1 | . . 1 2 3 1 . . . Largest Inventory Capacity 25 | 8 20 25 25 25 25 25 10 10 Average Capacity 20 | 6 18 24 25 25 25 10 10 10 Most Carried 25 | 6 20 20 20 25 25 24 8 9 Average Carried 18 | 3 16 18 20 21 24 9 6 8 Final Capacity 25 | 8 20 25 25 25 25 10 10 10 Final Carried 25 | 6 20 20 20 25 25 9 8 2 Class Distribution -------------------- 64% | Mutant 35% | Scavenger-Mutant Dominant Class ---------------- Mutant | -10/Materials Mutant | -10/Mines Mutant | -10/Exiles Mutant | -9/Mines Scavenger-Mutant | -8/Materials Scavenger-Mutant | -7/Factory Scavenger-Mutant | -6/Factory Scavenger-Mutant | -6/Extension Resources | -11 -10 -10 -10 -9 -8 -7 -6 -6 ----------- Run | Yrd Mat Min Exi Min Mat Fac Fac Ext Matter Collected 2519 | 250 350 65 . 544 660 39 . 611 Remotely . | . . . . . . . . . Salvage Created 2746 | . 623 19 . 321 902 91 . 790 Parts 159 | . 45 . . 23 60 7 . 24 Haulers Intercepted 5 | . 2 . . . 1 1 . 1 Recyclers Shooed 1 | . 1 . . . . . . . Parts Field Recycled . | . . . . . . . . . Retrieved Matter . | . . . . . . . . . Parts Self-Destructed . | . . . . . . . . . Prevented . | . . . . . . . . . Kills | -11 -10 -10 -10 -9 -8 -7 -6 -6 ------- Run | Yrd Mat Min Exi Min Mat Fac Fac Ext Combat Hostiles Destroyed 55 | . 14 1 . 20 20 . . . Guns 36 | . 12 1 . 8 15 . . . AOE 19 | . 2 . . 12 5 . . . Classes Destroyed 15 | . 6 . . 5 4 . . . Worker 4 | . . . . . 1 . . 3 Builder 2 | . . . . 2 . . . . Tunneler 1 | . . . . 1 . . . . Hauler 5 | . 2 . . . 1 1 . 1 Recycler 6 | . 1 . . . . . . 5 Mechanic 1 | . . . . . 1 . . . Operator 4 | . 2 . . . 1 1 . . Watcher 4 | . 2 . . . 1 1 . . Swarmer 11 | . 6 1 . . 4 . . . Grunt 22 | . 8 . . 2 12 . . . Duelist 1 | . . . . 1 . . . . Sentry 3 | . . . . . 3 . . . Demolisher 2 | . . . . 2 . . . . Hunter 1 | . . . . . 1 . . . Assembled 15 | . . . . 15 . . . . Best Kill Streak 15 | . 3 1 . 15 5 1 . 6 Combat Bots Only 14 | . 3 1 . 14 4 . . . Max Kills in Single Turn 3 | . 2 1 . 3 3 1 . 1 Gunslinging . | . . . . . . . . . Exploded 3 | . 2 . . 2 3 . . . Melee . | . . . . . . . . . Uniques/NPCs Destroyed . | . . . . . . . . . Combat | -11 -10 -10 -10 -9 -8 -7 -6 -6 -------- Run | Yrd Mat Min Exi Min Mat Fac Fac Ext Hostile Shots Fired 543 | . 75 5 . 78 86 122 . 177 Missed 182 | . 18 3 . 23 24 57 . 57 Damage Taken 5771 | . 658 38 . 1205 901 902 . 2067 Core 1492 | . 87 . . 124 89 340 . 852 Absorbed by Shields . | . . . . . . . . . Redirected to Shielding 218 | . . . . . 63 66 . 89 Regen/Repaired (Parts) 28 | . . . . . 23 . 5 . Core Remaining (%) 62 | 100 . . . 15 83 51 . . Volleys Fired 189 | . 66 7 . 41 68 . . 7 Largest 2 | . 2 2 . 2 2 . . 1 Hottest 90 | . 90 40 . 50 61 . . 30 Shots Fired 358 | . 130 12 . 74 134 . . 8 Gun 339 | . 128 11 . 61 131 . . 8 Cannon . | . . . . . . . . . Launcher 19 | . 2 1 . 13 3 . . . Special . | . . . . . . . . . Kinetic 325 | . 114 11 . 61 131 . . 8 Thermal . | . . . . . . . . . Explosive 19 | . 2 1 . 13 3 . . . Electromagnetic 14 | . 14 . . . . . . . Robot Hit Streak 12 | . 9 6 . 5 12 . . 5 Robot Miss Streak 6 | . 6 1 . 5 4 . . 1 Penetration Max . | . . . . . . . . . Secondary Targets 1 | . . . . 1 . . . . Max Gunslinging Chain 1 | . . . . 1 . . . . Shots Hit Robots 230 | . 79 7 . 35 86 6 . 17 Core Hits 147 | . 44 3 . 37 52 3 . 8 Critical Kills . | . . . . . . . . . Critical Parts Destroyed . | . . . . . . . . . Critical Strikes 2 | . . . . . . 1 . 1 Sever 2 | . . . . . . 1 . 1 Melee Attacks 34 | . . . . . . 22 . 12 Impact . | . . . . . . . . . Slashing 34 | . . . . . . 22 . 12 Piercing . | . . . . . . . . . Sneak Attacks 11 | . . . . . . 2 . 9 Combat Hostiles . | . . . . . . . . . Follow-up Attacks . | . . . . . . . . . Damage Inflicted 4939 | . 1052 54 . 1118 1534 314 . 867 Guns 2623 | . 792 54 . 418 1225 . . 134 Cannons . | . . . . . . . . . Explosions 1269 | . 260 . . 700 309 . . . Melee 1027 | . . . . . . 294 . 733 Ramming 20 | . . . . . . 20 . . Kinetic 2522 | . 691 54 . 418 1225 . . 134 Thermal . | . . . . . . . . . Explosive 1160 | . 151 . . 700 309 . . . Electromagnetic 210 | . 210 . . . . . . . Impact . | . . . . . . . . . Slashing 1027 | . . . . . . 294 . 733 Piercing . | . . . . . . . . . Highest Corruption 3 | . 1 1 1 1 3 1 3 3 Average Corruption 1 | . 1 1 1 1 3 1 2 3 Corruption Purged . | . . . . . . . . . Corruption Blocked . | . . . . . . . . . Effects 64 | . 13 9 11 2 22 . 3 4 Message Errors 16 | . 3 3 3 1 4 . 1 1 Matter Fused 12 | . 1 4 3 . 1 . 2 1 Heat Flow Errors 4 | . 1 . 1 . 2 . . . Energy Discharges 8 | . 4 . 1 . 3 . . . Data Loss (minor) 7 | . . . 2 1 4 . . . Data Loss (major) 8 | . 3 1 . . 3 . . 1 Misfires 4 | . 1 1 . . 1 . . 1 Alerts 2 | . . . 1 . 1 . . . Weapon Failures 3 | . . . . . 3 . . . Overload Shots . | . . . . . . . . . Overflow Damage 215 | . . . . 40 . . . 175 Projectiles . | . . . . . . . . . Explosions 40 | . . . . 40 . . . . Melee 175 | . . . . . . . . 175 Knockbacks . | . . . . . . . . . Impact . | . . . . . . . . . Kinetic . | . . . . . . . . . Secondary . | . . . . . . . . . Self-Inflicted Damage 73 | . 20 24 . 19 . 10 . . Shots 3 | . 1 1 . 1 . . . . Rammed 2 | . . . . . . 2 . . Targets Rammed 2 | . . . . . . 2 . . Kicked . | . . . . . . . . . Crushed . | . . . . . . . . . Highest Temperature 273 | . 273 6 92 50 169 2 . 11 Average Temperature 35 | . 54 4 51 12 19 1 . 7 Received Heat Transfer 1226 | . 321 . . 38 360 195 . 312 Siege Activations . | . . . . . . . . . Robots Corrupted . | . . . . . . . . . Combat Hostiles . | . . . . . . . . . Parts Fried 3 | . 3 . . . . . . . Impact Corruptions . | . . . . . . . . . Robots Melted . | . . . . . . . . . Combat Hostiles . | . . . . . . . . . Parts Melted . | . . . . . . . . . Heat Transferred . | . . . . . . . . . Parts Sabotaged . | . . . . . . . . . Parts Stolen . | . . . . . . . . . Parts Stripped . | . . . . . . . . . Power Chain Reactions . | . . . . . . . . . Alert | -11 -10 -10 -10 -9 -8 -7 -6 -6 ------- Run | Yrd Mat Min Exi Min Mat Fac Fac Ext Peak Influence 385 | . 270 50 . 160 385 253 103 90 Initial 116 | . . 5 . . 62 116 103 50 Average 100 | . 83 8 . 40 200 163 103 59 Maximum Alert Level 1 | . 1 . . . 1 1 . . Low Security (%) 84 | 100 90 100 . 100 56 73 100 100 Level 1 15 | . 9 . . . 43 26 . . Level 2 . | . . . . . . . . . Level 3 . | . . . . . . . . . Level 4 . | . . . . . . . . . Level 5 . | . . . . . . . . . High Security . | . . . . . . . . . Max Security . | . . . . . . . . . Squads Dispatched 16 | . 1 . . . 4 9 1 1 Investigation 6 | . . . . . 1 5 . . Extermination 2 | . . . . . . 1 1 . Reinforcement 8 | . 1 . . . 3 3 . 1 Assault . | . . . . . . . . . Garrison . | . . . . . . . . . Intercept . | . . . . . . . . . Searches Triggered . | . . . . . . . . . Construction Impeded 2 | . . . . . 1 . . 1 Haulers Reinforced 1 | . . . . . . 1 . . Active Scanning Responses . | . . . . . . . . . Cargo Convoy Interrupts . | . . . . . . . . . Stealth | -11 -10 -10 -10 -9 -8 -7 -6 -6 --------- Run | Yrd Mat Min Exi Min Mat Fac Fac Ext Distress Signals 1 | . . . . . 1 . . . Communications Jammed . | . . . . . . . . . Distress Signals . | . . . . . . . . . Times Spotted 110 | . 25 3 . 25 30 23 . 4 Peak Tracking Total 9 | . 4 3 . 9 5 7 1 4 Tactical Retreats 13 | . 1 1 . 2 1 8 . . Traps | -11 -10 -10 -10 -9 -8 -7 -6 -6 ------- Run | Yrd Mat Min Exi Min Mat Fac Fac Ext Traps Triggered 5 | . . . . . . 3 2 . Indirectly . | . . . . . . . . . Trap Hack Attempts . | . . . . . . . . . Triggered . | . . . . . . . . . Disarmed . | . . . . . . . . . Reprogrammed . | . . . . . . . . . Reused . | . . . . . . . . . Traps Extracted . | . . . . . . . . . Installed . | . . . . . . . . . Triggered . | . . . . . . . . . Machines | -11 -10 -10 -10 -9 -8 -7 -6 -6 ---------- Run | Yrd Mat Min Exi Min Mat Fac Fac Ext Machines Disabled 5 | . 3 1 . . 1 . . . Max in Single Turn 3 | . 3 1 . . 1 . . . Machines Repaired . | . . . . . . . . . Machines Dismantled . | . . . . . . . . . Machines Sabotaged . | . . . . . . . . . Overloaded Fab Kills . | . . . . . . . . . Hacking | -11 -10 -10 -10 -9 -8 -7 -6 -6 --------- Run | Yrd Mat Min Exi Min Mat Fac Fac Ext Machines Accessed 22 | . 5 . 4 . 5 6 2 . Terminals 10 | . 3 . . . 3 4 . . Fabricators 1 | . . . . . . 1 . . Repair Stations 2 | . . . . . 1 . 1 . Recycling Units 3 | . 2 . . . . . 1 . Scanalyzers 2 | . . . . . 1 1 . . Garrison Access . | . . . . . . . . . Total Hacks 62 | . 13 . 4 . 20 19 6 . Successful 34 | . 9 . 4 . 10 8 3 . Failed 28 | . 4 . . . 10 11 3 . Catastrophic 4 | . . . . . 1 3 . . Database Lockouts . | . . . . . . . . . Manual 14 | . . . 2 . 5 7 . . Terminals 29 | . 10 . . . 8 11 . . Fabricators 2 | . . . . . . 2 . . Repair Stations 9 | . . . . . 5 . 4 . Recycling Units 5 | . 3 . . . . . 2 . Scanalyzers 13 | . . . . . 7 6 . . Garrison Access . | . . . . . . . . . Terminal Hacks 15 | . 6 . 4 . 3 2 . . Record 4 | . . . 4 . . . . . Prototype ID Bank 1 | . . . . . 1 . . . Level Access Points 2 | . . . . . 1 1 . . Emergency Access Points 1 | . 1 . . . . . . . Alert Level 2 | . 2 . . . . . . . Locate Traps 3 | . 1 . . . 1 1 . . Zone Layout 2 | . 2 . . . . . . . Fabricator Hacks 2 | . . . . . . 2 . . Load Schematic 1 | . . . . . . 1 . . Build 1 | . . . . . . 1 . . Repair Station Hacks 4 | . . . . . 2 . 2 . Scan Component 2 | . . . . . 1 . 1 . Repair 2 | . . . . . 1 . 1 . Recycling Unit Hacks 4 | . 3 . . . . . 1 . Report Inventory 3 | . 2 . . . . . 1 . Retrieve Components 1 | . 1 . . . . . . . Scanalyzer 9 | . . . . . 5 4 . . Insert Component 5 | . . . . . 3 2 . . Analyze 4 | . . . . . 2 2 . . Garrison Access Hacks . | . . . . . . . . . Unauthorized Hacks . | . . . . . . . . . Terminals . | . . . . . . . . . Fabricators . | . . . . . . . . . Repair Stations . | . . . . . . . . . Recycling Units . | . . . . . . . . . Scanalyzers . | . . . . . . . . . Garrison Access . | . . . . . . . . . Data Cores Recovered . | . . . . . . . . . Used . | . . . . . . . . . Hacking Detections 18 | . 5 . . . 5 6 2 . Full Trace Events 5 | . . . . . 2 3 . . Feedback Events . | . . . . . . . . . Feedback Blocked . | . . . . . . . . . Robot Schematics Acquired . | . . . . . . . . . Robots Built . | . . . . . . . . . Authchips . | . . . . . . . . . Time . | . . . . . . . . . Total Robot Build Rating . | . . . . . . . . . Part Schematics Acquired 4 | . . . . . 2 2 . . Parts Built . | . . . . . . . . . Authchips . | . . . . . . . . . Time 36 | . . . . . . 36 . . Total Part Build Rating . | . . . . . . . . . Parts Repaired 2 | . . . . . 1 . 1 . Time 88 | . . . . . 70 . 18 . Parts Recycled . | . . . . . . . . . Recycled Matter . | . . . . . . . . . Retrieved Matter . | . . . . . . . . . Retrieved Components 9 | . 9 . . . . . . . Parts Scanalyzed 5 | . . . . . 3 2 . . Part Schematics Acquired 4 | . . . . . 2 2 . . Parts Damaged 1 | . . . . . 1 . . . Bothacking | -11 -10 -10 -10 -9 -8 -7 -6 -6 ------------ Run | Yrd Mat Min Exi Min Mat Fac Fac Ext Used RIF Installer . | . . . . . . . . . Robots Hacked . | . . . . . . . . . Non-combat . | . . . . . . . . . Combat . | . . . . . . . . . Robot Hacks Applied . | . . . . . . . . . Relay Couplers Released . | . . . . . . . . . Fabnet Peak Effective % . | . . . . . . . . . Robots Rewired . | . . . . . . . . . Allies Hacked . | . . . . . . . . . Hacks Repelled . | . . . . . . . . . Allies | -11 -10 -10 -10 -9 -8 -7 -6 -6 -------- Run | Yrd Mat Min Exi Min Mat Fac Fac Ext Total Allies . | . . . . . . . . . Largest Group . | . . . . . . . . . Highest-Rated Group . | . . . . . . . . . Highest-Rated Ally . | . . . . . . . . . Total Orders . | . . . . . . . . . Ally Attacks . | . . . . . . . . . Total Damage . | . . . . . . . . . Kills . | . . . . . . . . . Allies Corrupted . | . . . . . . . . . Allies Melted 1 | . . . . 1 . . . . Intel | -11 -10 -10 -10 -9 -8 -7 -6 -6 ------- Run | Yrd Mat Min Exi Min Mat Fac Fac Ext Robot Analysis Total . | . . . . . . . . . Derelict Logs Recovered 1 | . . 1 . . . . . . Drone Launches . | . . . . . . . . . Drone Recoveries . | . . . . . . . . . Exploration | -11 -10 -10 -10 -9 -8 -7 -6 -6 ------------- Run | Yrd Mat Min Exi Min Mat Fac Fac Ext Turns Passed 7868 | 87 1804 1057 1585 666 1458 647 300 264 Spaces Moved 3461 | 48 665 321 496 209 440 695 362 225 Core 8 | 5 . . . . . . . 3 Treads 2032 | 43 665 321 496 110 394 3 . . Legs . | . . . . . . . . . Wheels 146 | . . . . 99 46 . . 1 Hover 1275 | . . . . . . 692 362 221 Flight . | . . . . . . . . . Fastest Speed 50 | 50 160 240 320 135 140 63 74 56 Average Speed 192 | 148 226 314 320 242 231 71 75 78 Slowest Speed 320 | 160 240 320 320 320 320 240 147 300 Overloaded Moves . | . . . . . . . . . Propulsion Burnouts . | . . . . . . . . . Robots Hopped . | . . . . . . . . . Cave-ins Triggered . | . . . . . . . . . Exploration Rate (%) 42 | 4 77 76 81 46 31 26 8 31 Regions Visited 8 Branch Regions 4 Pre-discovered Areas . | . . . . . . . . . Known Exits Taken 3 | . . . . . 1 1 1 . Unknown Exits Taken 5 | 1 1 1 1 1 . . . . Scrap Searched 2 | . . 1 . 1 . . . . Spaces Dug 11 | . . . . . . 11 . . Terrain Destroyed 123 | . 16 . . 73 23 11 . . Melee 11 | . . . . . . 11 . . Projectile . | . . . . . . . . . AOE 112 | . 16 . . 73 23 . . . Terrain Rammed . | . . . . . . . . . Walls Destroyed . | . . . . . . . . . Machines Disabled . | . . . . . . . . . Actions | -11 -10 -10 -10 -9 -8 -7 -6 -6 --------- Run | Yrd Mat Min Exi Min Mat Fac Fac Ext Total 4348 | 62 853 361 495 300 790 814 386 287 Wait 394 | . 62 27 . 4 212 40 18 31 Move 3453 | 47 664 320 495 208 439 694 361 225 Hop . | . . . . . . . . . Pick Up 84 | 7 27 . . 16 21 11 1 1 Fast Attach 43 | 5 6 . . 6 14 6 3 3 Attach 51 | 2 3 1 . 12 7 17 3 6 Detach 11 | 1 1 2 . 3 2 2 . . Swap 16 | . 6 2 . 4 3 1 . . Drop 71 | . 18 2 . 6 24 19 . 2 Fire 189 | . 66 7 . 41 68 . . 7 Melee 34 | . . . . . . 22 . 12 Ram 2 | . . . . . . 2 . . Kick . | . . . . . . . . . Crush . | . . . . . . . . . Escape Stasis . | . . . . . . . . . Rewire . | . . . . . . . . . Trap . | . . . . . . . . . Miscellaneous . | . . . . . . . . . Route ------- -11/Scrapyard -10/Materials (discovered 5 exits: [*Mat x2] / [*Min x2] / [*Sub]) -10/Mines (discovered 3 exits: [*Mat x2] / *Exi) -10/Exiles -9/Mines -8/Materials (discovered 3 exits: *Fac x3) -7/Factory (discovered 4 exits: *Fac x4) -6/Factory (discovered 2 exits: *Low / *Ext) -6/Extension History --------- Turn | Location | Event 15 | -11/Scrapyard | Discovered new exit (range 15) 88 | -11/Scrapyard | Entered Materials 162 | -10/Materials | Discovered new exit (range 17) 315 | -10/Materials | Build established: Mutant 836 | -10/Materials | Discovered new exit (range 12) 1179 | -10/Materials | Discovered new exit (range 4) 1246 | -10/Materials | Discovered new exit (range 16) 1625 | -10/Materials | Discovered new exit (range 8) 1892 | -10/Materials | Entered Mines 1998 | -10/Mines | Discovered new exit (range 15) 2645 | -10/Mines | Discovered new exit (range 5) 2881 | -10/Mines | Learned 4 Materials zone layouts 2935 | -10/Mines | Deemed a non-threat by the Exiles lab entrance 2935 | -10/Mines | Discovered new exit (range 5) 2949 | -10/Mines | Entered Exiles 2949 | -10/Exiles | Found Exiles lab abandoned 4495 | -10/Exiles | Discovered new exit (range 14) 4534 | -10/Exiles | Entered Mines 4552 | -9/Mines | Found DCF Scrap (10 items) 4605 | -9/Mines | Met a Derelict bent on vengeance 4803 | -9/Mines | Assembled infested the area 4808 | -9/Mines | Assisted by a Guerilla fighting off Assembled 4935 | -9/Mines | Lost 4 parts (1p2n1u) 4952 | -9/Mines | Destroyed 14 combat bots 4977 | -9/Mines | Core integrity fell below 50% 4992 | -9/Mines | Core integrity fell below 20% 5014 | -9/Mines | Lost 5 parts (2n1u2w) 5193 | -9/Mines | Discovered new exit (range 6) 5200 | -9/Mines | Entered Materials 5200 | -8/Materials | Evolved 4 slots: Propulsion x1, Utility x3 5400 | -8/Materials | Build established: Scavenger-Mutant 5405 | -8/Materials | Lost 3 parts (2u1w) 6160 | -8/Materials | Repaired Broken Cmb. Airjet? 6338 | -8/Materials | Identified exit to Factory 6658 | -8/Materials | Entered Factory 6658 | -7/Factory | Evolved 2 slots: Utility x2 7142 | -7/Factory | Fabricated Hacking Suite? 7234 | -7/Factory | Identified exit to Factory 7305 | -7/Factory | Entered another Factory area 7305 | -6/Factory | Evolved 2 slots: Utility x2 7338 | -6/Factory | Repaired Broken Sensor Array 7559 | -6/Factory | Discovered new exit (range 15) 7560 | -6/Factory | Discovered new exit (range 12) 7574 | -6/Factory | Identified exit to Lower Caves 7604 | -6/Factory | Identified exit to Extension 7605 | -6/Factory | Entered Extension 7803 | -6/Extension | Spotted B-75 Beast 7830 | -6/Extension | Disrupted transfer network 7850 | -6/Extension | Spotted B-75 Beast 7863 | -6/Extension | Core integrity fell below 50% 7867 | -6/Extension | Core integrity fell below 20% 7869 | -6/Extension | Destroyed by B-75 Beast with Heavy Machine Gun Last Messages --------------- 07849_ Aerolev Unit destroyed. 07849_ Hvy. Machine Gun destroyed. 07850_ Cmb. Airjet destroyed. 07850_ R-10 Processor knocked back. 07851_ R-10 Processor collects Unknown Treads. 07854_ Imp. Hover Unit destroyed. 07855_ Utility Shielding destroyed. 07855_ Sensor Array destroyed. 07855_ Imp. Ion Engine destroyed. 07856_ Knocked back. 07858_ Gravmag Array destroyed. 07860_ Hover Unit destroyed. 07860_ Imp. Hover Unit destroyed. 07863_ Acquired 1 matter. 07863_ Knocked back. 07863_ Wheel destroyed. 07863_ Hacking Suite destroyed. 07865_ Door Terminal disabled. 07865_ Axe destroyed. 07869_ Knocked back. Map ----- +----------------------------------------------------+ | ?????????????????????????????????????????????????? | | ?????????????????????????????????????????????????? | | ????????????????????? ??????????????????????????? | | ???????????????????? ??????????????????????????? | | ???????????????????? ??????????????????????????? | | ???????????????????? #?????????????????????????? | | ???????????????????? #?????????????????????????? | | ????????????????????? #?????????????????????????? | | ????????????????????? #?????????????????????????? | | ????????????????????? #?????????????????????????? | | ?????????????????????# #??##?##?? #??????????????? | | ???????????????????### ### ## ### ##?????????????? | | ???????????????????#" "" "" ""#????????????? | | ???????????????????# "Y Y " " #????????????? | | ???????????????????# #????????????? | | ????????#######???## #????????????? | | "######"#"#"#;#####; % ####?????????? | | % % % ????????? | | = ! ????????? | | %%% % u ????????? | | %! % BB % ????????? | | % BB ????????? | | ########"########### % % BB ####?????????? | | ???????###?????????# BB #????????????? | | ??????????????????## #????????????? | | ??????????????????#; %@% #????????????? | | ??????????????????## #????????????? | | ???????????????????###### #"""#######????????????? | | ????????????????????????###??????????????????????? | | ?????????????????????????????????????????????????? | | | | | | | | | | | | | | | | | | | | | | | | | | | | | | | | | | | | | | | | | +----------------------------------------------------+ Best States ------------- Heat Dissipation 37 Energy Generation 14 Energy Capacity 265 Matter Stores 550 Matter Capacity 550 Sight Range 16 Robot Scan Range 15 Terrain Scan Density 10 Armor Coverage 225 Resistance: KI 20 Core Shielding 20 Power Shielding 66 Propulsion Shielding 33 Utility Shielding 33 Evasion (%) 52 Recoil Reduction 3 Offensive Hacking 20 Item Schematics ----------------- Cmb. Airjet | -8/Materials | Scanalyzed Hacking Suite | -8/Materials | Scanalyzed Propulsion Shielding | -7/Factory | Scanalyzed Imp. Sensor Array | -7/Factory | Scanalyzed Robot Schematics ------------------ None Fabricated ------------ Nothing Alien Tech Used ----------------- None Achievements -------------- None Challenges ------------ None Game ------ Seed MissilePointyRay Manual? 0 Play Time 00:59:13 Cumulative 30.9 hours Start 2025.03.21 @ 13:19:33 End 2025.03.21 @ 14:20:06 Sessions 1 Manual Loads 0 Difficulty Rogue Special Mode None Game No. 39 Rogue 39 Adventurer 0 Explorer 0 Win Type - Total 1 Types 1/0/0/0/0/0/0/0/0 Lore% 5 Gallery% 29 Achievement% 27 Wizard Run 0 Options --------- Layout 1 ASCII 0 Keyboard 0 Movement Mouse Keybinds 0 Fullscreen 1 Font 24/Terminus Map View 50x35 Zoom Use 0% Tactical HUD 1 Map Filters NONE Filters NONE Steam 1 RUN: 21544687-6a18-4351-8e16-b4527abf6675